[Event "*** Titled Tuesday Blitz"]
[Site "Chess.com"]
[Date "2018.10.02"]
[Round "8"]
[White "Ramosha"]
[Black "EndgameGrinder"]
[Result "1-0"]
[WhiteElo "2483"]
[BlackElo "2491"]
[TimeControl "180+2"]
[EndTime "14:45:57 PDT"]
[Termination "Ramosha won by resignation"]

1. d4 {[%clk 0:02:13.1]} 1... Nf6 {[%clk 0:02:55]} 2. Nf3 {[%clk 0:02:13.5]}
2... e6 {[%clk 0:02:54.7]} 3. c4 {[%clk 0:02:13.4]} 3... Bb4+ {[%clk 0:02:54.6]}
4. Bd2 {[%clk 0:02:14]} 4... a5 {[%clk 0:02:54.5]} 5. g3 {[%clk 0:02:14.6]} 5...
d6 {[%clk 0:02:55.3]} 6. Bg2 {[%clk 0:02:15.8]} 6... Nbd7 {[%clk 0:02:57]} 7.
O-O {[%clk 0:02:16.8]} 7... e5 {[%clk 0:02:58.2]} 8. Bg5 {[%clk 0:02:15]} 8...
exd4 {[%clk 0:02:56.5]} 9. Nxd4 {[%clk 0:02:08.7]} 9... h6 {[%clk 0:02:57.7]}
10. Bc1 {[%clk 0:01:58.9]} 10... O-O {[%clk 0:02:57.7]} 11. b3 {[%clk
0:01:58.4]} 11... Nb6 {[%clk 0:02:55.7]} 12. Bb2 {[%clk 0:01:58]} 12... d5
{[%clk 0:02:55.5]} 13. cxd5 {[%clk 0:01:48.9]} 13... Nbxd5 {[%clk 0:02:55.3]}
14. e4 {[%clk 0:01:47.5]} 14... Nb6 {[%clk 0:02:43.3]} 15. e5 {[%clk 0:01:42.8]}
15... Ng4 {[%clk 0:02:32.8]} 16. e6 {[%clk 0:01:39.2]} 16... fxe6 {[%clk
0:02:27.8]} 17. Qxg4 {[%clk 0:01:32.1]} 17... e5 {[%clk 0:02:29.1]} 18. Ne6
{[%clk 0:01:29.3]} 18... Qf6 {[%clk 0:02:29.4]} 19. Qxg7+ {[%clk 0:01:21.7]}
19... Qxg7 {[%clk 0:02:29.6]} 20. Nxg7 {[%clk 0:01:23.6]} 20... Kxg7 {[%clk
0:02:29.4]} 21. Bxe5+ {[%clk 0:01:24.5]} 21... Kg6 {[%clk 0:02:25.2]} 22. Bxc7
{[%clk 0:01:24.3]} 22... Bc5 {[%clk 0:02:26]} 23. Nc3 {[%clk 0:01:21.1]} 23...
Bf5 {[%clk 0:02:22.8]} 24. Bxb6 {[%clk 0:01:14.9]} 24... Bxb6 {[%clk 0:02:22.8]}
25. Nd5 {[%clk 0:01:13.1]} 25... Bc5 {[%clk 0:02:10.3]} 26. Rac1 {[%clk
0:01:13.4]} 26... Rac8 {[%clk 0:01:58.6]} 27. Nf4+ {[%clk 0:01:14.3]} 27... Kh7
{[%clk 0:01:55.3]} 28. Bxb7 {[%clk 0:01:14.4]} 28... Rc7 {[%clk 0:01:56.3]} 29.
Bd5 {[%clk 0:01:02.7]} 29... Rfc8 {[%clk 0:01:51.5]} 30. Kg2 {[%clk 0:00:57]}
30... Rd8 {[%clk 0:01:44.6]} 31. Be6 {[%clk 0:00:46]} 31... Be4+ {[%clk
0:01:42.3]} 32. f3 {[%clk 0:00:41.9]} 32... Rd2+ {[%clk 0:01:41.9]} 33. Kh3
{[%clk 0:00:43]} 33... Bb7 {[%clk 0:01:35.8]} 34. Bf5+ {[%clk 0:00:43.8]} 34...
Kh8 {[%clk 0:01:26.7]} 35. Ne6 {[%clk 0:00:40.8]} 35... Bc8 {[%clk 0:01:27.8]}
36. Nxc7 {[%clk 0:00:38.2]} 36... Bxf5+ {[%clk 0:01:27.9]} 37. g4 {[%clk
0:00:39.2]} 37... Bd6 {[%clk 0:01:28.4]} 38. gxf5 {[%clk 0:00:37.9]} 38... Rxh2+
{[%clk 0:01:28.3]} 39. Kg4 {[%clk 0:00:38.9]} 39... Rg2+ {[%clk 0:00:59.6]} 40.
Kh5 {[%clk 0:00:33.3]} 40... Kh7 {[%clk 0:00:33.4]} 41. f4 {[%clk 0:00:34.1]}
41... Rg3 {[%clk 0:00:20.8]} 42. Ne8 {[%clk 0:00:28.3]} 1-0

[Event "*** Titled Tuesday Blitz"]
[Site "Chess.com"]
[Date "2018.10.02"]
[Round "8"]
[White "Thjop"]
[Black "dretch"]
[Result "0-1"]
[WhiteElo "2625"]
[BlackElo "2774"]
[TimeControl "180+2"]
[EndTime "14:46:09 PDT"]
[Termination "dretch won by resignation"]

1. e4 {[%clk 0:03:01.9]} 1... e6 {[%clk 0:02:58.2]} 2. d4 {[%clk 0:03:02.4]}
2... d5 {[%clk 0:02:59.7]} 3. Nd2 {[%clk 0:03:03.4]} 3... c5 {[%clk 0:03:00.6]}
4. Ngf3 {[%clk 0:03:01.3]} 4... cxd4 {[%clk 0:03:01]} 5. exd5 {[%clk 0:02:59.7]}
5... Qxd5 {[%clk 0:03:01.3]} 6. Bc4 {[%clk 0:03:00]} 6... Qd6 {[%clk 0:03:01.9]}
7. O-O {[%clk 0:03:00.8]} 7... Nf6 {[%clk 0:03:02.5]} 8. Nb3 {[%clk 0:03:01.2]}
8... Nc6 {[%clk 0:03:03.7]} 9. Nbxd4 {[%clk 0:03:01.9]} 9... Nxd4 {[%clk
0:03:04.4]} 10. Nxd4 {[%clk 0:03:03.1]} 10... Be7 {[%clk 0:03:05.7]} 11. c3
{[%clk 0:03:02.3]} 11... O-O {[%clk 0:03:05.8]} 12. Qf3 {[%clk 0:02:52.8]} 12...
Qc5 {[%clk 0:02:57.5]} 13. Bb3 {[%clk 0:02:50.8]} 13... Qh5 {[%clk 0:02:56]} 14.
Qxh5 {[%clk 0:02:49.2]} 14... Nxh5 {[%clk 0:02:56.9]} 15. Be3 {[%clk 0:02:46]}
15... Bd7 {[%clk 0:02:55.3]} 16. Rfd1 {[%clk 0:01:50.3]} 16... Rfd8 {[%clk
0:02:53]} 17. Rd2 {[%clk 0:01:48.4]} 17... Nf6 {[%clk 0:02:49.8]} 18. f3 {[%clk
0:01:40.4]} 18... e5 {[%clk 0:02:46.2]} 19. Ne2 {[%clk 0:01:39.4]} 19... Bb5
{[%clk 0:02:46.8]} 20. Rad1 {[%clk 0:01:33.1]} 20... a5 {[%clk 0:02:45.5]} 21.
Rxd8+ {[%clk 0:01:32]} 21... Bxd8 {[%clk 0:02:46.5]} 22. Kf2 {[%clk 0:01:31.7]}
22... a4 {[%clk 0:02:45.8]} 23. Bc2 {[%clk 0:01:26.8]} 23... Be7 {[%clk
0:02:14.5]} 24. Ng3 {[%clk 0:01:27.1]} 24... Bc4 {[%clk 0:02:12]} 25. a3 {[%clk
0:01:15.9]} 25... Nd5 {[%clk 0:02:09]} 26. Nf5 {[%clk 0:00:59.4]} 26... Bf8
{[%clk 0:02:08.7]} 27. Be4 {[%clk 0:01:00.7]} 27... Nxe3 {[%clk 0:02:03.2]} 28.
Nxe3 {[%clk 0:00:58.7]} 28... Bc5 {[%clk 0:01:58.9]} 29. Rd7 {[%clk 0:00:56.1]}
29... Rb8 {[%clk 0:01:42.6]} 30. Bd5 {[%clk 0:00:53.1]} 30... b5 {[%clk
0:01:19.9]} 31. g3 {[%clk 0:00:22]} 31... g6 {[%clk 0:01:09.1]} 32. Bxc4 {[%clk
0:00:17.4]} 32... bxc4 {[%clk 0:01:09.7]} 33. Rd2 {[%clk 0:00:18.4]} 33... f5
{[%clk 0:01:06.9]} 34. Ke2 {[%clk 0:00:18.8]} 34... Bxe3 {[%clk 0:01:07.5]} 35.
Kxe3 {[%clk 0:00:20.7]} 35... Kf7 {[%clk 0:01:08.2]} 36. h4 {[%clk 0:00:16.5]}
36... Ke6 {[%clk 0:01:07.7]} 37. Ke2 {[%clk 0:00:17.4]} 37... Rb5 {[%clk
0:01:03.4]} 38. Ke3 {[%clk 0:00:18]} 38... Rd5 {[%clk 0:01:02.9]} 39. Rxd5
{[%clk 0:00:16.6]} 39... Kxd5 {[%clk 0:01:04.8]} 40. f4 {[%clk 0:00:17.8]} 40...
Ke6 {[%clk 0:00:57.2]} 41. Kf3 {[%clk 0:00:17.9]} 41... Kf6 {[%clk 0:00:55.9]}
42. Ke3 {[%clk 0:00:18.9]} 42... h6 {[%clk 0:00:54.9]} 43. Kf3 {[%clk
0:00:19.5]} 43... exf4 {[%clk 0:00:49.9]} 44. gxf4 {[%clk 0:00:20.2]} 44... g5
{[%clk 0:00:51.3]} 45. hxg5+ {[%clk 0:00:20]} 45... hxg5 {[%clk 0:00:52.2]} 46.
fxg5+ {[%clk 0:00:21.3]} 46... Kxg5 {[%clk 0:00:53.3]} 47. Ke3 {[%clk
0:00:21.4]} 47... f4+ {[%clk 0:00:52.4]} 48. Kf3 {[%clk 0:00:22.2]} 48... Kf5
{[%clk 0:00:53.5]} 49. Kf2 {[%clk 0:00:22.9]} 49... Ke4 {[%clk 0:00:54.7]} 50.
Ke2 {[%clk 0:00:24.2]} 50... f3+ {[%clk 0:00:56.1]} 51. Kf2 {[%clk 0:00:25.6]}
51... Kf4 {[%clk 0:00:57.6]} 52. Kf1 {[%clk 0:00:26.3]} 52... Ke3 {[%clk
0:00:58.8]} 53. Ke1 {[%clk 0:00:27.6]} 53... f2+ {[%clk 0:01:00.3]} 54. Kf1
{[%clk 0:00:28.8]} 54... Kf3 {[%clk 0:01:01.7]} 55. b4 {[%clk 0:00:28.8]} 55...
axb3 {[%clk 0:01:02.2]} 0-1

[Event "*** Titled Tuesday Blitz"]
[Site "Chess.com"]
[Date "2018.10.02"]
[Round "8"]
[White "W_Amadeus"]
[Black "biostatistician"]
[Result "1-0"]
[WhiteElo "2621"]
[BlackElo "2570"]
[TimeControl "180+2"]
[EndTime "14:46:10 PDT"]
[Termination "W_Amadeus won on time"]

1. e4 {[%clk 0:03:01.9]} 1... e6 {[%clk 0:03:00.6]} 2. d4 {[%clk 0:03:02]} 2...
d5 {[%clk 0:03:02.5]} 3. Nc3 {[%clk 0:03:03.6]} 3... Nf6 {[%clk 0:03:03.6]} 4.
e5 {[%clk 0:03:04.7]} 4... Nfd7 {[%clk 0:03:04.9]} 5. Nce2 {[%clk 0:03:06.4]}
5... c5 {[%clk 0:03:06.1]} 6. c3 {[%clk 0:03:08]} 6... Nc6 {[%clk 0:03:08]} 7.
Nf3 {[%clk 0:03:09.2]} 7... cxd4 {[%clk 0:03:04.7]} 8. cxd4 {[%clk 0:03:09.4]}
8... Bb4+ {[%clk 0:03:06.3]} 9. Bd2 {[%clk 0:03:10]} 9... O-O {[%clk 0:03:03.7]}
10. Bxb4 {[%clk 0:02:59.3]} 10... Nxb4 {[%clk 0:03:05.6]} 11. Qd2 {[%clk
0:02:55.5]} 11... a5 {[%clk 0:03:00.6]} 12. a3 {[%clk 0:02:40.9]} 12... Nc6
{[%clk 0:02:56.9]} 13. Nf4 {[%clk 0:02:42.1]} 13... b6 {[%clk 0:02:52.6]} 14.
Bb5 {[%clk 0:02:33.9]} 14... Bb7 {[%clk 0:02:41.9]} 15. O-O {[%clk 0:02:33.3]}
15... Qe7 {[%clk 0:02:42.6]} 16. Rfc1 {[%clk 0:02:26.7]} 16... Rfc8 {[%clk
0:02:43.7]} 17. Rc3 {[%clk 0:02:14.2]} 17... Na7 {[%clk 0:02:42.6]} 18. Bxd7
{[%clk 0:02:06.3]} 18... Qxd7 {[%clk 0:02:41.3]} 19. Nh5 {[%clk 0:02:06.2]}
19... Qe7 {[%clk 0:02:25.6]} 20. Rac1 {[%clk 0:02:02.6]} 20... Rxc3 {[%clk
0:02:21.5]} 21. Rxc3 {[%clk 0:02:04.5]} 21... Rc8 {[%clk 0:02:22.8]} 22. Rxc8+
{[%clk 0:01:59.3]} 22... Bxc8 {[%clk 0:02:19.5]} 23. h4 {[%clk 0:01:52.1]} 23...
h6 {[%clk 0:02:19.9]} 24. g4 {[%clk 0:01:50.9]} 24... Nc6 {[%clk 0:01:48.2]} 25.
g5 {[%clk 0:01:46.4]} 25... hxg5 {[%clk 0:01:50.1]} 26. hxg5 {[%clk 0:01:44]}
26... Qf8 {[%clk 0:01:39.2]} 27. Kh2 {[%clk 0:01:25.4]} 27... Ne7 {[%clk
0:01:38.5]} 28. Nh4 {[%clk 0:01:17.3]} 28... Ba6 {[%clk 0:01:33.2]} 29. Kg3
{[%clk 0:01:09.2]} 29... Bc4 {[%clk 0:01:26.7]} 30. Qc2 {[%clk 0:01:02.6]} 30...
g6 {[%clk 0:00:41.4]} 31. Nf6+ {[%clk 0:01:02.5]} 31... Kg7 {[%clk 0:00:42.7]}
32. b3 {[%clk 0:00:40.8]} 32... Bf1 {[%clk 0:00:43.2]} 33. Qc7 {[%clk
0:00:37.2]} 33... Nf5+ {[%clk 0:00:37.7]} 34. Nxf5+ {[%clk 0:00:37.8]} 34...
gxf5 {[%clk 0:00:39.6]} 35. Qc1 {[%clk 0:00:30.8]} 35... Bd3 {[%clk 0:00:37.2]}
36. Nh5+ {[%clk 0:00:22.6]} 36... Kg8 {[%clk 0:00:35.3]} 37. Qh1 {[%clk
0:00:21.4]} 37... f4+ {[%clk 0:00:27.2]} 38. Kxf4 {[%clk 0:00:21.5]} 1-0

[Event "*** Titled Tuesday Blitz"]
[Site "Chess.com"]
[Date "2018.10.02"]
[Round "8"]
[White "PaulfromSPb"]
[Black "xamax2000"]
[Result "1-0"]
[WhiteElo "2520"]
[BlackElo "2449"]
[TimeControl "180+2"]
[EndTime "14:46:13 PDT"]
[Termination "PaulfromSPb won on time"]

1. e4 {[%clk 0:03:01.9]} 1... c5 {[%clk 0:03:00.2]} 2. Ne2 {[%clk 0:03:02.5]}
2... Nf6 {[%clk 0:02:59.7]} 3. Nbc3 {[%clk 0:03:01.1]} 3... Nc6 {[%clk
0:02:58.2]} 4. d4 {[%clk 0:03:01.5]} 4... cxd4 {[%clk 0:02:58.6]} 5. Nxd4 {[%clk
0:03:03.4]} 5... d6 {[%clk 0:02:59.7]} 6. Bg5 {[%clk 0:03:03.4]} 6... e6 {[%clk
0:03:00.4]} 7. Qd2 {[%clk 0:03:02.7]} 7... a6 {[%clk 0:03:01.7]} 8. O-O-O {[%clk
0:03:02.7]} 8... Bd7 {[%clk 0:03:03.6]} 9. f4 {[%clk 0:02:46.1]} 9... Be7 {[%clk
0:02:59.8]} 10. Bxf6 {[%clk 0:02:40.8]} 10... Bxf6 {[%clk 0:02:52.6]} 11. Nf3
{[%clk 0:02:33.6]} 11... Qc7 {[%clk 0:02:36.1]} 12. Qxd6 {[%clk 0:02:26.6]}
12... Qxd6 {[%clk 0:02:38]} 13. Rxd6 {[%clk 0:02:27.1]} 13... Bxc3 {[%clk
0:02:36.1]} 14. bxc3 {[%clk 0:02:29]} 14... Ke7 {[%clk 0:02:37.1]} 15. Rd2
{[%clk 0:02:17.1]} 15... Rhc8 {[%clk 0:02:37.7]} 16. Be2 {[%clk 0:02:11.4]}
16... Rc7 {[%clk 0:02:38.7]} 17. Rhd1 {[%clk 0:02:11]} 17... Rac8 {[%clk
0:02:38.4]} 18. Kb2 {[%clk 0:02:10]} 18... Na5 {[%clk 0:02:28.8]} 19. Rd4 {[%clk
0:01:22.8]} 19... Be8 {[%clk 0:02:26.2]} 20. c4 {[%clk 0:01:14.3]} 20... Nxc4+
{[%clk 0:02:24.7]} 21. Bxc4 {[%clk 0:01:14.7]} 21... Rxc4 {[%clk 0:02:26.5]} 22.
Rxc4 {[%clk 0:01:11.1]} 22... Rxc4 {[%clk 0:02:28.4]} 23. Rd4 {[%clk 0:01:09.5]}
23... Rc5 {[%clk 0:02:26.7]} 24. Ne5 {[%clk 0:01:06.3]} 24... f6 {[%clk
0:00:58.6]} 25. Nd3 {[%clk 0:01:01]} 25... Rh5 {[%clk 0:00:59.5]} 26. h3 {[%clk
0:01:01.1]} 26... e5 {[%clk 0:00:57.1]} 27. fxe5 {[%clk 0:00:44.6]} 27... fxe5
{[%clk 0:00:59]} 28. Rb4 {[%clk 0:00:45.6]} 28... Bc6 {[%clk 0:00:54]} 29. Kc3
{[%clk 0:00:33.6]} 29... Kd6 {[%clk 0:00:51.5]} 30. Nf2 {[%clk 0:00:31.6]} 30...
Rh4 {[%clk 0:00:34.3]} 31. Kd3 {[%clk 0:00:30.6]} 31... Rf4 {[%clk 0:00:32.2]}
32. Ke3 {[%clk 0:00:31.3]} 32... Rf7 {[%clk 0:00:26]} 33. Rb1 {[%clk 0:00:31.9]}
33... Ke6 {[%clk 0:00:25.1]} 34. Nd3 {[%clk 0:00:31.3]} 34... Rc7 {[%clk
0:00:21.3]} 35. c4 {[%clk 0:00:23.8]} 35... Kd6 {[%clk 0:00:16.3]} 36. Rb6
{[%clk 0:00:22.3]} 36... Rf7 {[%clk 0:00:13.9]} 37. c5+ {[%clk 0:00:22.8]} 37...
Ke6 {[%clk 0:00:11.2]} 38. Nb4 {[%clk 0:00:23.9]} 38... Rc7 {[%clk 0:00:09.6]}
39. a4 {[%clk 0:00:19.4]} 1-0

[Event "*** Titled Tuesday Blitz"]
[Site "Chess.com"]
[Date "2018.10.02"]
[Round "8"]
[White "luizzy"]
[Black "Thee-Chessboy"]
[Result "1-0"]
[WhiteElo "2408"]
[BlackElo "2300"]
[TimeControl "180+2"]
[EndTime "14:46:18 PDT"]
[Termination "luizzy won by resignation"]

1. d4 {[%clk 0:03:01.9]} 1... Nf6 {[%clk 0:02:58.4]} 2. c4 {[%clk 0:03:03.1]}
2... e6 {[%clk 0:02:53.5]} 3. Nc3 {[%clk 0:03:04.1]} 3... c5 {[%clk 0:02:54.3]}
4. d5 {[%clk 0:03:05]} 4... exd5 {[%clk 0:02:55.4]} 5. cxd5 {[%clk 0:03:06.9]}
5... d6 {[%clk 0:02:56.6]} 6. e4 {[%clk 0:03:08.5]} 6... g6 {[%clk 0:02:57.6]}
7. Bd3 {[%clk 0:03:09.4]} 7... Bg7 {[%clk 0:02:58.3]} 8. h3 {[%clk 0:03:10.9]}
8... O-O {[%clk 0:02:59.1]} 9. Nf3 {[%clk 0:03:12.3]} 9... a6 {[%clk 0:02:59.4]}
10. a4 {[%clk 0:03:12]} 10... Ne8 {[%clk 0:02:57.3]} 11. O-O {[%clk 0:03:07.4]}
11... h6 {[%clk 0:02:57.6]} 12. Bf4 {[%clk 0:03:07.4]} 12... Nd7 {[%clk
0:02:56.7]} 13. Qd2 {[%clk 0:03:08.1]} 13... Kh7 {[%clk 0:02:57]} 14. a5 {[%clk
0:03:08.4]} 14... Qe7 {[%clk 0:02:53.7]} 15. Rfe1 {[%clk 0:03:06.1]} 15... Ne5
{[%clk 0:02:52.7]} 16. Nxe5 {[%clk 0:03:06.9]} 16... dxe5 {[%clk 0:02:52.5]} 17.
Be3 {[%clk 0:03:00.7]} 17... Bd7 {[%clk 0:02:48.1]} 18. Rac1 {[%clk 0:02:39.9]}
18... Nf6 {[%clk 0:02:36.9]} 19. Bc4 {[%clk 0:02:29.9]} 19... Qd6 {[%clk
0:02:25.2]} 20. f3 {[%clk 0:02:10]} 20... Nh5 {[%clk 0:02:21.2]} 21. Ne2 {[%clk
0:02:10.1]} 21... Rac8 {[%clk 0:02:13.7]} 22. Bd3 {[%clk 0:02:01]} 22... Rc7
{[%clk 0:02:04]} 23. Qc3 {[%clk 0:01:53.1]} 23... Rfc8 {[%clk 0:02:02.1]} 24.
Rc2 {[%clk 0:01:46.6]} 24... c4 {[%clk 0:01:53.4]} 25. Bb6 {[%clk 0:01:36.8]}
25... cxd3 {[%clk 0:01:49]} 26. Bxc7 {[%clk 0:01:37.9]} 26... Qf6 {[%clk
0:01:04.7]} 27. Qxd3 {[%clk 0:01:31.7]} 27... Bb5 {[%clk 0:01:04.3]} 28. Qd2
{[%clk 0:01:21.7]} 28... Bxe2 {[%clk 0:01:01.5]} 29. Qxe2 {[%clk 0:01:14.3]}
29... Nf4 {[%clk 0:01:01]} 30. Qf2 {[%clk 0:01:11.6]} 30... Qg5 {[%clk
0:01:00.2]} 31. Kh2 {[%clk 0:01:07.1]} 31... Nd3 {[%clk 0:00:54.6]} 32. Qe3
{[%clk 0:00:46.1]} 32... Nxe1 {[%clk 0:00:54.8]} 33. Qxe1 {[%clk 0:00:48]} 33...
Qf4+ {[%clk 0:00:53.6]} 34. Qg3 {[%clk 0:00:48.4]} 34... Qxg3+ {[%clk
0:00:48.5]} 35. Kxg3 {[%clk 0:00:50.3]} 35... Bf6 {[%clk 0:00:44.6]} 36. d6
{[%clk 0:00:49.3]} 36... Kg7 {[%clk 0:00:41.1]} 37. d7 {[%clk 0:00:50.4]} 37...
Rg8 {[%clk 0:00:36.4]} 38. Rd2 {[%clk 0:00:50.7]} 38... Bd8 {[%clk 0:00:35.7]}
39. Bxe5+ {[%clk 0:00:50.5]} 39... f6 {[%clk 0:00:37.6]} 40. Bc3 {[%clk
0:00:47.7]} 40... Kf7 {[%clk 0:00:38.3]} 41. f4 {[%clk 0:00:38.7]} 41... Ke6
{[%clk 0:00:37.4]} 42. Kf3 {[%clk 0:00:28.6]} 42... Rg7 {[%clk 0:00:38.1]} 43.
g4 {[%clk 0:00:28.6]} 43... Rxd7 {[%clk 0:00:38]} 44. f5+ {[%clk 0:00:29.6]}
44... gxf5 {[%clk 0:00:38.3]} 45. gxf5+ {[%clk 0:00:28.9]} 45... Ke7 {[%clk
0:00:30.3]} 46. Bxf6+ {[%clk 0:00:29.2]} 1-0

[Event "*** Titled Tuesday Blitz"]
[Site "Chess.com"]
[Date "2018.10.02"]
[Round "8"]
[White "JonahWillow"]
[Black "ahmadzada13"]
[Result "0-1"]
[WhiteElo "2697"]
[BlackElo "2648"]
[TimeControl "180+2"]
[EndTime "14:46:21 PDT"]
[Termination "ahmadzada13 won by resignation"]

1. e4 {[%clk 0:03:01.9]} 1... e6 {[%clk 0:02:59.4]} 2. d3 {[%clk 0:03:02.8]}
2... d5 {[%clk 0:03:01]} 3. Nd2 {[%clk 0:03:04.4]} 3... c5 {[%clk 0:03:02.5]} 4.
g3 {[%clk 0:03:05.6]} 4... Nc6 {[%clk 0:03:03.9]} 5. Bg2 {[%clk 0:03:05.7]} 5...
Nge7 {[%clk 0:03:05.2]} 6. f4 {[%clk 0:02:54.3]} 6... g6 {[%clk 0:02:36.6]} 7.
Ngf3 {[%clk 0:02:53.6]} 7... Bg7 {[%clk 0:02:37.6]} 8. O-O {[%clk 0:02:54.3]}
8... O-O {[%clk 0:02:33.6]} 9. c3 {[%clk 0:02:55.6]} 9... b6 {[%clk 0:02:31.1]}
10. Re1 {[%clk 0:02:51.9]} 10... Ba6 {[%clk 0:02:23.7]} 11. Nf1 {[%clk
0:02:45.9]} 11... dxe4 {[%clk 0:01:57.5]} 12. dxe4 {[%clk 0:02:45.8]} 12... Qxd1
{[%clk 0:01:55.8]} 13. Rxd1 {[%clk 0:02:47.7]} 13... Rfd8 {[%clk 0:01:54.4]} 14.
Be3 {[%clk 0:02:49.1]} 14... f5 {[%clk 0:01:54.8]} 15. e5 {[%clk 0:02:48.2]}
15... Nd5 {[%clk 0:01:43.5]} 16. Bf2 {[%clk 0:02:41]} 16... h6 {[%clk
0:01:42.1]} 17. Ne3 {[%clk 0:02:39.7]} 17... Nce7 {[%clk 0:01:37.4]} 18. Nh4
{[%clk 0:02:30.2]} 18... Kf7 {[%clk 0:01:31.8]} 19. a4 {[%clk 0:02:07.1]} 19...
Nxe3 {[%clk 0:01:28.7]} 20. Bxe3 {[%clk 0:02:05.8]} 20... Nd5 {[%clk 0:01:29.3]}
21. Bxd5 {[%clk 0:01:58.8]} 21... Rxd5 {[%clk 0:01:27.7]} 22. Rxd5 {[%clk
0:01:55.8]} 22... exd5 {[%clk 0:01:29.6]} 23. Rd1 {[%clk 0:01:57.5]} 23... Bc4
{[%clk 0:01:26.9]} 24. b4 {[%clk 0:01:55.3]} 24... cxb4 {[%clk 0:01:25.1]} 25.
cxb4 {[%clk 0:01:57.2]} 25... Bf8 {[%clk 0:01:20.2]} 26. b5 {[%clk 0:01:54.2]}
26... Rc8 {[%clk 0:01:21.1]} 27. Rc1 {[%clk 0:01:43.4]} 27... Ba3 {[%clk
0:01:19.3]} 28. Rc2 {[%clk 0:01:40.6]} 28... Bc5 {[%clk 0:01:09.5]} 29. Kf2
{[%clk 0:01:33]} 29... Bd3 {[%clk 0:01:04.1]} 30. Rd2 {[%clk 0:01:20.2]} 30...
Bxe3+ {[%clk 0:01:05]} 31. Kxe3 {[%clk 0:01:20.2]} 31... Be4 {[%clk 0:01:06.9]}
32. e6+ {[%clk 0:01:16.2]} 32... Kxe6 {[%clk 0:01:00]} 33. Nxg6 {[%clk 0:01:17]}
33... Rc3+ {[%clk 0:01:01.5]} 34. Ke2 {[%clk 0:01:15.4]} 34... Rc1 {[%clk
0:00:56.5]} 35. Ne5 {[%clk 0:01:01.9]} 35... Kd6 {[%clk 0:00:52.7]} 36. Nf7+
{[%clk 0:00:50.6]} 36... Kc5 {[%clk 0:00:52.2]} 37. Nxh6 {[%clk 0:00:51.9]}
37... d4 {[%clk 0:00:50.2]} 38. Nf7 {[%clk 0:00:47.5]} 38... Kc4 {[%clk
0:00:47.5]} 39. Nd6+ {[%clk 0:00:31]} 39... Kc3 {[%clk 0:00:47.7]} 40. g4 {[%clk
0:00:32.4]} 40... d3+ {[%clk 0:00:47.3]} 41. Ke3 {[%clk 0:00:30.2]} 41... Re1+
{[%clk 0:00:48.3]} 42. Kf2 {[%clk 0:00:31.7]} 42... Kxd2 {[%clk 0:00:48.5]} 43.
Nc4+ {[%clk 0:00:32.6]} 43... Kd1 {[%clk 0:00:42.8]} 44. Nb2+ {[%clk 0:00:32.9]}
44... Kc2 {[%clk 0:00:16.5]} 45. Kxe1 {[%clk 0:00:34.8]} 45... Kxb2 {[%clk
0:00:15]} 46. Kd2 {[%clk 0:00:35.8]} 46... fxg4 {[%clk 0:00:16.3]} 47. Ke3
{[%clk 0:00:37]} 47... Bf5 {[%clk 0:00:17.8]} 48. Kd4 {[%clk 0:00:36.8]} 48...
d2 {[%clk 0:00:18.3]} 0-1

[Event "*** Titled Tuesday Blitz"]
[Site "Chess.com"]
[Date "2018.10.02"]
[Round "8"]
[White "David_Paravyan"]
[Black "Sanan_Sjugirov"]
[Result "0-1"]
[WhiteElo "2816"]
[BlackElo "2835"]
[TimeControl "180+2"]
[EndTime "14:46:22 PDT"]
[Termination "Sanan_Sjugirov won on time"]

1. e4 {[%clk 0:02:59.9]} 1... e5 {[%clk 0:02:59.1]} 2. Nf3 {[%clk 0:03:01.2]}
2... Nc6 {[%clk 0:03:00.3]} 3. Nc3 {[%clk 0:03:01.6]} 3... Nf6 {[%clk
0:02:59.3]} 4. h3 {[%clk 0:02:57.2]} 4... Bc5 {[%clk 0:02:47.5]} 5. Nxe5 {[%clk
0:02:53.6]} 5... Nxe5 {[%clk 0:02:36.9]} 6. d4 {[%clk 0:02:54.1]} 6... Bd6
{[%clk 0:02:34]} 7. dxe5 {[%clk 0:02:32.9]} 7... Bxe5 {[%clk 0:02:34.6]} 8. Bd3
{[%clk 0:02:34.4]} 8... Bxc3+ {[%clk 0:02:24.6]} 9. bxc3 {[%clk 0:02:33.8]} 9...
d6 {[%clk 0:02:25.6]} 10. O-O {[%clk 0:02:34.4]} 10... O-O {[%clk 0:01:55.5]}
11. Bg5 {[%clk 0:02:31.6]} 11... Bd7 {[%clk 0:01:21.5]} 12. f4 {[%clk
0:02:26.6]} 12... Bc6 {[%clk 0:01:16.9]} 13. Qd2 {[%clk 0:01:51.2]} 13... h6
{[%clk 0:01:17.2]} 14. Bh4 {[%clk 0:01:45.7]} 14... Nxe4 {[%clk 0:01:16.3]} 15.
Qe1 {[%clk 0:01:44.6]} 15... Qe8 {[%clk 0:01:10.1]} 16. Rb1 {[%clk 0:01:43.3]}
16... f5 {[%clk 0:01:07.3]} 17. c4 {[%clk 0:01:33.3]} 17... Qg6 {[%clk 0:00:58]}
18. Rf3 {[%clk 0:01:01.3]} 18... Rae8 {[%clk 0:00:58.2]} 19. Qa5 {[%clk
0:00:36.8]} 19... b6 {[%clk 0:00:49.4]} 20. Qxa7 {[%clk 0:00:32.5]} 20... Nd2
{[%clk 0:00:40.8]} 21. Rg3 {[%clk 0:00:33.9]} 21... Qf7 {[%clk 0:00:42]} 22. Rd1
{[%clk 0:00:34.9]} 22... Ne4 {[%clk 0:00:25.3]} 23. Bxe4 {[%clk 0:00:31.3]}
23... Rxe4 {[%clk 0:00:22.8]} 24. Ra3 {[%clk 0:00:14.1]} 24... Rxf4 {[%clk
0:00:16.7]} 25. Bg3 {[%clk 0:00:15]} 25... Rxc4 {[%clk 0:00:18.1]} 26. Rd2
{[%clk 0:00:05.6]} 26... f4 {[%clk 0:00:18.9]} 27. Bf2 {[%clk 0:00:05]} 27...
Qg6 {[%clk 0:00:16.6]} 28. g4 {[%clk 0:00:03.3]} 28... fxg3 {[%clk 0:00:16.8]}
29. Rxg3 {[%clk 0:00:03.3]} 29... Qe4 {[%clk 0:00:09.6]} 30. Kf1 {[%clk
0:00:04.6]} 30... Qh1+ {[%clk 0:00:08.7]} 31. Rg1 {[%clk 0:00:02.8]} 31... Qxh3+
{[%clk 0:00:08.7]} 32. Ke1 {[%clk 0:00:04.4]} 32... Qf3 {[%clk 0:00:06.5]} 33.
Qxc7 {[%clk 0:00:03.2]} 33... Re8+ {[%clk 0:00:07.8]} 34. Kf1 {[%clk 0:00:03.9]}
34... Qh3+ {[%clk 0:00:08.9]} 0-1